Cogmind - Beta 13 @@@ ROGUE MODE // 2024.06.07 @ 15:51:49 Player: e.v.o Result: Self-destructed Performance ------------- Evolutions (1) 500 Regions Visited (2) 400 Robots Destroyed (30) 150 Value Destroyed (578) 578 Prototype IDs (2) 40 Alien Tech Used (0) 0 Bonus (8) 8 TOTAL SCORE: 1676 Bonus ------- High Alert Combat Kills 8 Cogmind --------- Core Integrity 365/400 Matter 175/300 Energy 125/125 System Corruption 0% Temperature Cool (0) Movement Treading (160) Location -9/Materials Parts ------- > --- POWER (1) -------- Light Ion Engine > --- PROPULSION (2) --- Light Treads Light Treads > --- UTILITY (2) ------ Small Storage Unit Visual Processing Unit > --- WEAPON (4) ------- Medium Laser Assault Rifle Shotgun Rocket Launcher > --- INVENTORY (8) ---- Improved Ion Engine Hover Unit Hover Unit Hover Unit Hover Unit Medium Laser Light Assault Rifle Light Assault Rifle Peak State ------------ > --- POWER ------------ Light Ion Engine > --- PROPULSION ------- Light Treads Light Treads > --- UTILITY ---------- Small Storage Unit Visual Processing Unit > --- WEAPON ----------- Medium Laser Spread Laser Assault Rifle Rocket Launcher > --- INVENTORY -------- Light Ion Engine Light Treads Light Treads Medium Laser Particle Cannon Light Assault Rifle Light Assault Rifle Shotgun [Rating: 13] Favorites ----------- Power Light Ion Engine Engine Light Ion Engine Propulsion Light Treads Treads Light Treads Utility Small Storage Unit Storage Small Storage Unit Processor Visual Processing Unit Weapon Assault Rifle Energy Gun Medium Laser Ballistic Gun Assault Rifle Launcher Rocket Launcher Build | -11 -10 -9 ------- Run | Yrd Mat Mat Slots Evolved 2 | . . 2 Power . | . . . Propulsion . | . . . Utility . | . . . Weapon 2 | . . 2 Parts Attached 30 | 6 7 17 Power 6 | 1 1 4 Engine 6 | 1 1 4 Core . | . . . Reactor . | . . . Propulsion 7 | 2 2 3 Treads 7 | 2 2 3 Leg . | . . . Wheel . | . . . Hover . | . . . Flight . | . . . Utility 3 | 1 1 1 Device . | . . . Storage 1 | 1 . . Processor 2 | . 1 1 Hackware . | . . . Protection . | . . . Artifact . | . . . Weapon 14 | 2 3 9 Energy Gun 3 | . . 3 Energy Cannon . | . . . Ballistic Gun 9 | 2 3 4 Ballistic Cannon . | . . . Launcher 2 | . . 2 Special Weapon . | . . . Impact Weapon . | . . . Slashing Weapon . | . . . Piercing Weapon . | . . . Special Melee Weapon . | . . . Unidentified Prototypes . | . . . Parts Lost . | . . . Power . | . . . Propulsion . | . . . Utility . | . . . Weapon . | . . . Highest Loss Streak . | . . . To Critical Strikes . | . . . Average Slot Usage (%) 99 | . 98 100 Engine 12 | . 14 11 Treads 24 | . 28 22 Storage 12 | . 14 11 Processor 11 | . 12 11 Energy Gun 8 | . . 16 Ballistic Gun 25 | . 28 22 Launcher 2 | . . 4 Naked Turns . | . . . Heaviest Build 19 | 12 12 19 Greatest Support 40 | 40 40 40 Greatest Overweight (x) . | . . . Average Overweight (x) . | . . . Largest Inventory Capacity 8 | 8 8 8 Average Capacity 7 | 7 8 8 Most Carried 8 | 4 8 8 Average Carried 5 | 2 4 6 Final Capacity 8 | 8 8 8 Final Carried 8 | 4 6 8 Class Distribution -------------------- 51% | Mutant 48% | Skirmisher Dominant Class ---------------- Mutant | -10/Materials Skirmisher | -9/Materials Resources | -11 -10 -9 ----------- Run | Yrd Mat Mat Matter Collected 736 | 225 263 248 Remotely . | . . . Salvage Created 749 | . 320 429 Parts 50 | . 19 31 Haulers Intercepted 1 | . . 1 Recyclers Shooed 3 | . 3 . Parts Field Recycled . | . . . Retrieved Matter . | . . . Parts Self-Destructed . | . . . Prevented . | . . . Kills | -11 -10 -9 ------- Run | Yrd Mat Mat Combat Hostiles Destroyed 23 | . 10 13 Guns 17 | . 10 7 AOE 6 | . . 6 Classes Destroyed 7 | . 3 4 Worker 3 | . . 3 Hauler 1 | . . 1 Recycler 1 | . . 1 Watcher 2 | . 2 . Swarmer 13 | . 6 7 Grunt 8 | . 4 4 Sentry 2 | . . 2 Best Kill Streak 6 | . 6 5 Combat Bots Only 6 | . 6 4 Max Kills in Single Turn 5 | . 2 5 Gunslinging 1 | . 1 . Exploded 2 | . . 2 Melee . | . . . Uniques/NPCs Destroyed . | . . . Combat | -11 -10 -9 -------- Run | Yrd Mat Mat Hostile Shots Fired 84 | . 51 33 Missed 25 | . 16 9 Damage Taken 724 | . 356 368 Core 62 | . 27 35 Absorbed by Shields . | . . . Core Remaining (%) 94 | 100 89 . Volleys Fired 57 | . 29 28 Largest 4 | . 2 4 Hottest 155 | . 40 155 Shots Fired 130 | . 58 72 Gun 124 | . 58 66 Cannon . | . . . Launcher 6 | . . 6 Special . | . . . Kinetic 101 | . 58 43 Thermal 23 | . . 23 Explosive 6 | . . 6 Electromagnetic . | . . . Robot Hit Streak 7 | . 7 6 Robot Miss Streak 6 | . 5 6 Penetration Max . | . . . Secondary Targets 5 | . 5 . Max Gunslinging Chain 1 | . 1 . Shots Hit Robots 68 | . 33 35 Core Hits 42 | . 17 25 Critical Kills . | . . . Critical Parts Destroyed . | . . . Critical Strikes 2 | . . 2 Burn 2 | . . 2 Melee Attacks . | . . . Impact . | . . . Slashing . | . . . Piercing . | . . . Sneak Attacks . | . . . Combat Hostiles . | . . . Follow-up Attacks . | . . . Damage Inflicted 1479 | . 392 1087 Guns 849 | . 392 457 Cannons . | . . . Explosions 630 | . . 630 Melee . | . . . Ramming . | . . . Kinetic 704 | . 392 312 Thermal 145 | . . 145 Explosive 630 | . . 630 Electromagnetic . | . . . Impact . | . . . Slashing . | . . . Piercing . | . . . Highest Corruption 1 | . 1 . Average Corruption 1 | . 1 . Corruption Purged . | . . . Corruption Blocked . | . . . Effects 4 | . 4 . Matter Fused 1 | . 1 . Energy Discharges 1 | . 1 . Data Loss (minor) 1 | . 1 . Data Loss (major) 1 | . 1 . Overload Shots . | . . . Overflow Damage 35 | . . 35 Projectiles . | . . . Explosions 35 | . . 35 Melee . | . . . Knockbacks . | . . . Impact . | . . . Kinetic . | . . . Secondary . | . . . Self-Inflicted Damage 117 | . . 117 Shots 2 | . . 2 Rammed . | . . . Targets Rammed . | . . . Kicked . | . . . Crushed . | . . . Highest Temperature 145 | . 12 145 Average Temperature 35 | . 6 40 Received Heat Transfer 144 | . 114 30 Siege Activations . | . . . Robots Corrupted . | . . . Combat Hostiles . | . . . Parts Fried . | . . . Impact Corruptions . | . . . Robots Melted . | . . . Combat Hostiles . | . . . Parts Melted 1 | . . 1 Heat Transferred 543 | . . 543 Parts Sabotaged . | . . . Parts Stolen . | . . . Parts Stripped . | . . . Power Chain Reactions . | . . . Alert | -11 -10 -9 ------- Run | Yrd Mat Mat Peak Influence 413 | . 267 413 Initial 58 | . . 58 Average 121 | . 113 144 Maximum Alert Level 2 | . 1 2 Low Security (%) 76 | 100 73 76 Level 1 20 | . 26 17 Level 2 2 | . . 5 Level 3 . | . . . Level 4 . | . . . Level 5 . | . . . High Security . | . . . Max Security . | . . . Squads Dispatched 2 | . 1 1 Investigation 1 | . 1 . Extermination . | . . . Reinforcement 1 | . . 1 Assault . | . . . Garrison . | . . . Intercept . | . . . Searches Triggered . | . . . Construction Impeded . | . . . Haulers Reinforced . | . . . Active Scanning Responses . | . . . Cargo Convoy Interrupts . | . . . Stealth | -11 -10 -9 --------- Run | Yrd Mat Mat Distress Signals 1 | . 1 . Communications Jammed . | . . . Distress Signals . | . . . Times Spotted 28 | . 14 14 Peak Tracking Total 5 | . 5 4 Tactical Retreats . | . . . Traps | -11 -10 -9 ------- Run | Yrd Mat Mat Traps Triggered 1 | . 1 . Indirectly . | . . . Trap Hack Attempts . | . . . Triggered . | . . . Disarmed . | . . . Reprogrammed . | . . . Reused . | . . . Traps Extracted . | . . . Installed . | . . . Triggered . | . . . Machines | -11 -10 -9 ---------- Run | Yrd Mat Mat Machines Disabled 3 | . 1 2 Max in Single Turn 1 | . 1 1 Machines Repaired . | . . . Machines Dismantled . | . . . Machines Sabotaged . | . . . Overloaded Fab Kills . | . . . Hacking | -11 -10 -9 --------- Run | Yrd Mat Mat Machines Accessed 7 | . 5 2 Terminals 7 | . 5 2 Fabricators . | . . . Repair Stations . | . . . Recycling Units . | . . . Scanalyzers . | . . . Garrison Access . | . . . Total Hacks 18 | . 14 4 Successful 8 | . 6 2 Failed 10 | . 8 2 Catastrophic 1 | . 1 . Database Lockouts . | . . . Manual 3 | . 3 . Terminals 18 | . 14 4 Fabricators . | . . . Repair Stations . | . . . Recycling Units . | . . . Scanalyzers . | . . . Garrison Access . | . . . Terminal Hacks 6 | . 4 2 Robot Analysis 1 | . . 1 Prototype ID Bank 1 | . 1 . Locate Traps 1 | . 1 . Transport Status 1 | . 1 . Hauler Manifests 2 | . 1 1 Fabricator Hacks . | . . . Repair Station Hacks . | . . . Recycling Unit Hacks . | . . . Scanalyzer . | . . . Garrison Access Hacks . | . . . Unauthorized Hacks 2 | . 2 . Terminals 2 | . 2 . Assimilate 1 | . 1 . Operators 1 | . 1 . Fabricators . | . . . Repair Stations . | . . . Recycling Units . | . . . Scanalyzers . | . . . Garrison Access . | . . . Data Cores Recovered . | . . . Used . | . . . Hacking Detections 6 | . 4 2 Full Trace Events 2 | . 2 . Feedback Events . | . . . Feedback Blocked . | . . . Robot Schematics Acquired . | . . . Robots Built . | . . . Authchips . | . . . Time . | . . . Total Robot Build Rating . | . . . Part Schematics Acquired . | . . . Parts Built . | . . . Authchips . | . . . Time . | . . . Total Part Build Rating . | . . . Parts Repaired . | . . . Time . | . . . Parts Recycled . | . . . Recycled Matter . | . . . Retrieved Matter . | . . . Retrieved Components . | . . . Parts Scanalyzed . | . . . Part Schematics Acquired . | . . . Parts Damaged . | . . . Bothacking | -11 -10 -9 ------------ Run | Yrd Mat Mat Used RIF Installer . | . . . Robots Hacked . | . . . Non-combat . | . . . Combat . | . . . Robot Hacks Applied . | . . . Relay Couplers Released . | . . . Fabnet Peak Effective % . | . . . Robots Rewired . | . . . Allies Hacked . | . . . Hacks Repelled . | . . . Allies | -11 -10 -9 -------- Run | Yrd Mat Mat Total Allies . | . . . Largest Group . | . . . Highest-Rated Group . | . . . Highest-Rated Ally . | . . . Total Orders . | . . . Ally Attacks . | . . . Total Damage . | . . . Kills . | . . . Allies Corrupted . | . . . Allies Melted . | . . . Intel | -11 -10 -9 ------- Run | Yrd Mat Mat Robot Analysis Total 1 | . . 1 Derelict Logs Recovered . | . . . Drone Launches . | . . . Drone Recoveries . | . . . Exploration | -11 -10 -9 ------------- Run | Yrd Mat Mat Turns Passed 1288 | 78 596 614 Spaces Moved 655 | 43 311 301 Core 2 | 2 . . Treads 653 | 41 311 301 Legs . | . . . Wheels . | . . . Hover . | . . . Flight . | . . . Fastest Speed 50 | 50 160 160 Average Speed 159 | 154 160 160 Slowest Speed 160 | 160 160 160 Overloaded Moves . | . . . Propulsion Burnouts . | . . . Robots Hopped . | . . . Cave-ins Triggered . | . . . Exploration Rate (%) 24 | 4 45 24 Regions Visited 2 Branch Regions . Pre-discovered Areas . | . . . Known Exits Taken . | . . . Unknown Exits Taken 2 | 1 1 . Scrap Searched . | . . . Spaces Dug . | . . . Terrain Destroyed 100 | . . 100 Melee . | . . . Projectile . | . . . AOE 100 | . . 100 Terrain Rammed . | . . . Walls Destroyed . | . . . Machines Disabled . | . . . Actions | -11 -10 -9 --------- Run | Yrd Mat Mat Total 783 | 52 353 378 Wait 5 | . . 5 Move 653 | 42 310 301 Hop . | . . . Pick Up 19 | 4 2 13 Fast Attach 7 | 6 1 . Attach 3 | . . 3 Detach . | . . . Swap 20 | . 6 14 Drop 19 | . 5 14 Fire 57 | . 29 28 Melee . | . . . Ram . | . . . Kick . | . . . Crush . | . . . Escape Stasis . | . . . Rewire . | . . . Trap . | . . . Miscellaneous . | . . . Route ------- -11/Scrapyard -10/Materials (discovered 2 exits: *Mat / [*Min]) -9/Materials History --------- Turn | Location | Event 46 | -11/Scrapyard | Discovered new exit (range 14) 79 | -11/Scrapyard | Entered Materials 296 | -10/Materials | Discovered new exit (range 8) 300 | -10/Materials | Build established: Mutant 485 | -10/Materials | Discovered new exit (range 17) 675 | -10/Materials | Entered another Materials area 675 | -9/Materials | Evolved 2 slots: Weapon x2 982 | -9/Materials | Build established: Skirmisher 1289 | -9/Materials | Self-destructed Last Messages --------------- 01227_ ALERT: Hostiles spotted, dispatching reinforcements to Terminal M012. 01227_ O-16 Technician locks terminal. 01228_ K-01 Serf collects debris. 01231_ U-05 Engineer builds a Wall. 01233_ The unstable cave ceiling collapses. 01233_ U-05 Engineer forms the Earth. 01236_ U-05 Engineer builds a Wall. 01241_ Dropped Lgt. Ion Engine. 01241_ Dropped Rocket Launcher. 01249_ Acquired Imp. Ion Engine. 01250_ G-34 Mercenary destroyed. 01254_ U-05 Engineer builds a Wall. 01256_ U-05 Engineer builds a Door. 01260_ U-05 Engineer lays Concrete. 01261_ U-05 Engineer builds a Wall. 01265_ U-05 Engineer lays Concrete. 01266_ Dropped Lgt. Treads. 01267_ Acquired Hover Unit. 01287_ A-02 Transporter destroyed. Map ----- +----------------------------------------------------+ | T #????????????????????????????????????????????? | | #????????????????????????????????????????????? | | #????????????????????????????????????????????? | | ##########????????????????????????????????????? | | # #????????????????????????????????????? | | # """ #????????????????????????????????????? | | # """ #?????##+####????????????????????????? | | # """ #?????# #????????????????????????? | | + #?????# #????????????????????????? | | # """ #?????# !!! #????????????????????????? | | # """ #?????# !!! #????????????????????????? | | # """ #?????# !!! #????????????????????????? | | # #?##### #????????????????????????? | | ############ # # #????????????????????????? | | #????### # #????????????????????????? | | #????# # #####+#????????????????????????? | | #???## # # #????????????????????????? | | #???# # # #????????????????????????? | | #???# #### #????????????????????????? | | #???# ### #######+##########???????? | | #???## # ^ ^ ???????? | | #???# # # ???????? | | #???### # ^ ???????? | | ##?### ### r ###+##??????????? | | ### # # #+######## * #???????????????? | | =[ =* @=] #???????????????? | | [! * *= = #???????????????? | | %[=*![= = #???????????????? | | ** = ###########"T"### #???????????????? | | ### =# ##?????????#"""#?# #???????????????? | | ??# #?????????#####?# #???????????????? | | ??# = = ! #???????????????# #???????????????? | | ??# ####???????????????# #???????????????? | | ??# ###########????????# ???????????????? | | ??# # #???????? ??????????????? | | ??# # """ """ #???????? ??????????????? | | ### # """ """ #???????? ?????????????? | | # """ """ #???????? =%* ##?????????????? | | + #???????? = ??????????????? | | ##+#####+## #???????? #??????????????? | | # ## #???????? ??????????????? | | #" ## #???????? ??????????????? | | #" """ ############???????? ??????????????? | | #" """ #???????????????????# ????????????????? | | #T """ #???????????????????????????????????????? | | #" """ #???????????????????????????????????????? | | #" #???????????????????????????????????????? | | #" #???????????????????????????????????????? | | # #???????????????????????????????????????? | | ##########???????????????????????????????????????? | +----------------------------------------------------+ Best States ------------- Heat Dissipation 28 Energy Generation 10 Energy Capacity 125 Matter Stores 300 Matter Capacity 300 Sight Range 18 Terrain Scan Density 10 Evasion (%) 40 Recoil Reduction 2 Item Schematics ----------------- None Robot Schematics ------------------ None Fabricated ------------ Nothing Alien Tech Used ----------------- None Achievements -------------- None Challenges ------------ None Game ------ Seed AngularGravitonBay Manual? 0 Play Time 00:11:09 Cumulative 79.1 hours Start 2024.06.07 @ 15:42:40 End 2024.06.07 @ 15:51:49 Sessions 1 Manual Loads 0 Difficulty Rogue Special Mode None Game No. 133 Rogue 108 Adventurer 25 Explorer 0 Win Type - Total 0 Types 0/0/0/0/0/0/0/0/0 Lore% 24 Gallery% 43 Achievement% 31 Wizard Run 0 Options --------- Layout 1 ASCII 0 Keyboard 0 Movement Mouse Keybinds 0 Fullscreen 2 Font 24/Smallcaps Map View 50x35 Zoom Use 0% Tactical HUD 1 Map Filters NONE Filters NONE Steam 1 RUN: 01a7ca1b-06db-4f14-8b2b-36e8cb77461d